{"text_format":"1","workbook":"xlsx","n_sheets":1,"sheets":["СНТсмета"],"not_rendered":{"charts":0,"images":0,"macros":0,"external_links":0,"defined_names":0,"comments":0,"pivot_tables":0},"unopened":[],"bounds":{"document_bytes":16777216,"sheet_cells":100000,"rows_first":2000,"rows_last":500,"rows_between":2000,"halvings":0,"cell_chars":16384,"cell_head_chars":4096},"cells_cut":0,"cells_raw":0,"read":"whole","date_system":"1900"}

{"sheet":"СНТсмета","index":0,"n_rows":117,"n_cols":6,"rows_kept":117,"cut":false,"hidden":false,"merged":[[28,4,29,4],[35,4,36,4],[47,4,49,4],[35,0,36,0],[35,1,36,1],[35,2,36,2],[47,1,49,1],[0,0,0,3],[1,0,1,3],[33,0,33,3],[116,0,116,2],[60,0,60,2],[110,0,110,2],[35,3,36,3]]}
["СМЕТА  доходов и расходов "]
["СНТ «Воейково» на 2017г."]
[]
["Утверждено Общим собранием от _________________2017 года"]
["Председатель Правления  СНТ «Воейково\"  "]
["____________________________________________________________________",null,null,"Круглов А.Н"]
["подпись",null,null,"Ф.И.О."]
[null,null,"Количество членов СНТ  чел",452]
[null,null,"Количество индивидуалов  чел",2]
[null,null,"Количество соток в СНТ (без ЗОП)",3097]
[null,null,"Количество участков  подключенных к ЛЭП",353]
[null,null,"Количество участков подключенных к летнему водопроводу",290]
[null,null,"Количество участков подключенных к постоянному водопроводу",53]
[null,null,"Вступительный взнос \\руб",500]
[null,null,"Членский взнос \\ руб",2600]
[null,null,"Взнос за подключение к ЛЭП ",50000]
[null,null,"Взнос за подключение к летнему водопроводу",20000]
[null,null,"Взнос за подключение к  постоянному водопроводу",50000]
[null,null,"Штраф за несанкционированное подключение к электросети",30000]
[null,null,"Повторное подключение к сети ЛЭП ",30000]
[null,null,"Штраф за несанкционированное подключение к водопроводу",30000]
[null,null,"Целевой взнос на реконструкцию и обслуживание ЛЭП\\руб с участка,подключенного к ЛЭП",700]
[null,null,"Целевой взнос на благоустройство с 1 сотки\\руб",300]
[null,null,"Целевой взнос на обслуживание водопровода\\руб с участка подключенного к водопроводу после счетчика СНТ",600,"увеличилась стоимость материалов, замена счетчиков"]
[null,null,"Целевой взнос на оплату потребления воды\\руб - летний водопровод","0.022*4*77,54  =6,83 р.","С кв. м. Либо установка счетчика"]
[null,null,"Целевой взнос на оплату потребления воды\\руб - постоянный водопровод","77,54 руб. куб.м. ","До 01.09.16 надо было установить счетчик"]
[null,null,"Постановлением Правительства Л.О. от 30.05.2014г. № 201 норматив потребления ХВС для  \"Дома без ванн, с водопроводом, газоснабжением, без централизованной канализации  - 5, 23  м. куб. на человека в месяц.","Без счетчика, 5,23 х77,54=405,53 руб.в месяц на чел."]
[null,null,"Целевой взнос на пожарную безопасность с члена СНТ \\руб",100]
[null,null,"Целевой взнос на вывоз мусора с уч-ка без построек или летним домом\\руб",500,"Связано с увеличением тарифов \"Сметсберг\" и увеличением объема вывозимого ТБО"]
[null,null,"Целевой взнос на вывоз мусора с уч-ка с зимним домом \\руб",1500]
[null,null,"Земельный налог с сотки оформленного участка",30]
[null,null,"Земельный налог с сотки неоформленного участка","122+30=152"]
[null,null,"Взнос за неучастие в общественных работах",500]
[]
[]
[null,null,"ДОХОДЫ ","СМЕТА Сумма всего"]
[]
[]
[1,null,"Членские и вступительные взносы",{"$f":"D40+D41+D42","v":1181900}]
[null,"1.1.","Вступительные взносы",1500]
[null,"1.2.","Членские взносы",{"$f":"D8*D15","v":1175200}]
[null,1.3,"Индивидуальные договоры",{"$f":"D9*D15","v":5200}]
[]
[2,null,"Целевые поступления по конкретным программам",{"$f":"D45+D46+D47+D51+D52+D53","v":1751200}]
[null,"2.1.","Благоустройство",{"$f":"D23*D10","v":929100}]
[null,"2.2.","Реконструкция линий электропередач , обслуживание ЛЭП",{"$f":"D22*D11","v":247100}]
[null,"2.3.","Водоснабжение (обслуживание и реконструкция) - всего",{"$f":"SUM(D48:D50)","v":205800}]
[null,"в т.ч. ","Строительство и обслуживание водопровода",0]
[null,null,"Летнее водоснабжение",{"$f":"D12*D24","v":174000}]
[null,null,"Постоянное водоснабжение",{"$f":"D13*D24","v":31800}]
[null,"2.4.","Пожарная безопасность",45200]
[null,"2.5.","Вывоз мусора",315000,null,"450х500+60х1500"]
[null,"2.6.","Счетчики контрольные",9000]
[]
[null,null,"Оплата потребленной воды",1163100]
[3,null,"Оплата за эл. энергию",1200000]
[]
[4,null,"Земельный налог",148400]
[]
[5,null,"Внереализационные доходы (пени)",0]
["ВСЕГО поступлений",null,null,{"$f":"+D39+D44+D56+D58+D55","v":5444600}]
[]
[]
[]
[]
[null,null,"РАСХОДЫ","смета "]
[1,null,"Административно-управленческие  расходы.",{"$f":"SUM(D68:D80)","v":1181900},{"$f":"D39-D67","v":0}]
[null,"1.1.","Зарплата с начислениями",897000,"Председатель, зам. Председателя, кассир, бухгалтер"]
[null,"1.2.","Расходы на командировки и конференции",0]
[null,"1.3.","Транспортные расходы",0]
[null,"1.4.","Расходы на проведение аудита",0]
[null,"1.5.","Почтовые расходы",7000]
[null,"1.6.","Юридические консультации, судебные споры",150000]
[null,"1.7.","Аренда помещений",0]
[null,"1.8.","Услуги связи  и интернета",15000]
[null,"1.9.","Канцелярские и хозяйственные расходы",7000]
[null,"1.10.","Представительские расходы",0]
[null,"1.11.","Содержание сайта СНТ",900]
[null,"1.12.","Услуги банка",30000]
[null,"1.13.","Прочие(непредвиденные)  расходы",75000," электричество, вода, зем. налог"]
[]
[]
[null,null,"Статьи расходов по целевым программам"]
[]
[2,null,"Расходы по программе \"Благоустройство\"",929100,{"$f":"D45-D85","v":0}]
[null,null,"Ремонт Окружной дороги в СНТ с устройством дренажа.",179100]
[null,null,"Проведение мелиорационных работ по ул. Лесная",0]
[null,"2.1.","транспортные расходы",50000]
[null,"2.2.","контрагентские услуги, материалы  и прочие расходы",700000]
[]
[3,null,"Обслуживание водопровода",205800]
[null,"3.1.","Зарплата с начислениями",117300,{"$f":"D47-D91","v":0}]
[null,"3.2.","контрагентские услуги, материалы  и прочие расходы",88500]
[]
[4,null,"Вывоз мусора (экология)",315000,{"$f":"D52-D95","v":0}]
[null,"4.1.","Вывоз мусора. Оплата по договору",300000]
[null,"4.2.","Уборка территории и вывоз мусора (субботник и т.д.) ",15000]
[]
[5,null,"Пожарная безопасность",45200,{"$f":"D51-D99","v":0}]
[null,"5.1.","Таблички на улицы",20000]
[null,null,"Ограждение пожарных водоёмов",25200]
[]
[6,null,"ЛЭП - обслуживание и реконструкция",{"$f":"D46","v":247100}]
[null,"6.1.","Зарплата с начислениями",0]
[null,"6.2.","транспортные , контрагентские услуги и материалы",{"$f":"D103-D104","v":247100},{"$f":"D46-D105","v":0}]
[]
[7,null,"Установка контрольных счетчиков",9000,{"$f":"D107-D53","v":0}]
[]
[]
[]
["ИТОГО по целевым программам",null,null,{"$f":"D85+D91+D95+D99+D103+D107","v":1751200}]
[]
[8,null,"Оплата за электроэнергию (текущее потребление) ",{"$f":"D56","v":1200000},{"$f":"D56-D113","v":0}]
[9,null,"Оплата потребленной воды",1163100,0]
[10,null,"Оплата земельного налога",148400,{"$f":"D58-D115","v":0}]
[null,"7.3."]
["ВСЕГО расходов",null,null,{"$f":"SUM(D113:D115,D111,D67)","v":5444600},{"$f":"D61-D117","v":0}]